bitfinex/quotes_BTCUSD_20260104
["timestamp","ask_amount","ask_price","bid_price","bid_amount"]
[1767536927384,0.0658027,91182.0,91177.0,0.11120832]
[1767536927593,0.06580321,91181.0,91177.0,0.05637002]
[1767536927769,0.01096719,91181.0,91177.0,0.11120837]
[1767536928102,0.01096719,91181.0,91178.0,0.04540235]
[1767536929280,0.06580362,91181.0,91178.0,0.04540235]
[1767536929938,0.0658027,91182.0,91178.0,0.04540235]
[1767536930106,0.06580317,91181.0,91178.0,0.04540235]
[1767536930710,0.01096719,91181.0,91178.0,0.04540235]
[1767536931034,0.06580338,91181.0,91178.0,0.04540235]
[1767536932650,0.05483662,91180.0,91178.0,0.04540235]
[1767536933524,0.06580338,91181.0,91178.0,0.04540235]
[1767536934118,0.06580338,91181.0,91176.0,0.06580677]
[1767536934329,0.01096731,91180.0,91176.0,0.11120907]
[1767536934541,0.01096731,91180.0,91177.0,0.04540235]
[1767536937092,0.06580395,91180.0,91177.0,0.04540235]
[1767536937244,0.06580395,91180.0,91176.0,0.06580662]
[1767536937245,0.01096731,91180.0,91176.0,0.06580662]
[1767536937468,0.06580338,91181.0,91177.0,0.01096767]
[1767536937828,0.06580338,91181.0,91176.0,0.11120897]
[1767536938477,0.06580338,91181.0,91176.0,0.06580662]
[1767536940037,0.06580347,91182.0,91177.0,0.06580553]
[1767536940303,0.06580328,91181.0,91177.0,0.01096767]
[1767536941532,0.06580347,91182.0,91178.0,0.01096755]
[1767536941706,0.03527346,91209.0,91175.0,0.01102322]
[1767536941707,0.01096611,91190.0,91187.0,0.04881606]
[1767536941917,0.01096599,91191.0,91187.0,0.05978253]
[1767536942417,0.0657958,91192.0,91188.0,0.04881606]
[1767536942622,0.06579461,91193.0,91189.0,0.04881606]
[1767536943005,0.01096587,91192.0,91189.0,0.04881606]
[1767536943435,0.06579546,91192.0,91189.0,0.04881606]
[1767536943631,0.05483047,91191.0,91189.0,0.04781706]
[1767536944681,0.0547617,91191.0,91189.0,0.04781706]
[1767536947006,0.01096611,91190.0,91186.0,0.01096659]
[1767536947351,0.01096611,91190.0,91187.0,0.04881606]
[1767536948637,0.06579692,91190.0,91187.0,0.04881606]
[1767536948781,0.0548314,91189.0,91187.0,0.04881606]
[1767536951248,0.06579781,91190.0,91187.0,0.04881606]
[1767536951955,0.00996711,91190.0,91187.0,0.04881606]
[1767536953209,0.06579651,91191.0,91187.0,0.04881606]
[1767536953954,0.01096611,91190.0,91187.0,0.04881606]
[1767536955942,0.06579675,91190.0,91187.0,0.04881606]
[1767536957400,0.0548299,91192.0,91187.0,0.04881606]
[1767536957615,0.06579577,91192.0,91187.0,0.11461483]
[1767536958426,0.01096599,91191.0,91187.0,0.05978253]
[1767536958634,0.01096599,91191.0,91187.0,0.01096647]
[1767536958801,0.022896,91190.0,91186.0,0.06579914]
[1767536959015,0.022896,91190.0,91187.0,0.0429028]
[1767536959211,0.022896,91190.0,91187.0,0.05386927]
[1767536960340,0.06579529,91192.0,91188.0,0.04881606]
[1767536961356,0.01096599,91191.0,91188.0,0.04881606]
[1767536961509,0.06579597,91191.0,91188.0,0.04881606]
[1767536961954,0.01096599,91191.0,91188.0,0.04881606]
[1767536962314,0.06579529,91192.0,91188.0,0.04881606]
[1767536962497,0.06579527,91192.0,91188.0,0.05978241]
[1767536962702,0.06579527,91192.0,91188.0,0.04881606]
[1767536963283,0.01096587,91192.0,91188.0,0.11461407]
[1767536965223,0.0657954,91192.0,91188.0,0.04881606]
[1767536966379,0.01096599,91191.0,91188.0,0.04039397]
[1767536967170,0.06579538,91192.0,91189.0,0.04881606]
[1767536967385,0.06579453,91193.0,91189.0,0.04881606]
[1767536967986,0.06579528,91192.0,91189.0,0.04881606]
[1767536968838,0.06579383,91194.0,91190.0,0.04881606]
[1767536969163,0.01096611,91190.0,91181.0,0.01096719]
[1767536969382,0.01096659,91186.0,91182.0,0.04881606]
[1767536969581,0.01096671,91185.0,91182.0,0.04881606]
[1767536969719,0.01096671,91185.0,91182.0,0.04781706]
[1767536969925,0.06580006,91186.0,91182.0,0.04781706]
[1767536970129,0.01096671,91185.0,91182.0,0.04781706]
[1767536970325,0.06579996,91187.0,91183.0,0.06065475]
[1767536970530,0.01096659,91186.0,91183.0,0.0496878]
[1767536971407,0.0657997,91186.0,91183.0,0.0496878]
[1767536971836,0.0657997,91186.0,91183.0,0.0496878]
[1767536972167,0.01096659,91186.0,91181.0,0.0496878]
[1767536972398,0.01096683,91184.0,91181.0,0.0496878]
[1767536972546,0.06580121,91184.0,91181.0,0.0496878]
[1767536972891,0.05483493,91183.0,91181.0,0.0496878]
[1767536973098,0.05483538,91182.0,91181.0,0.0496878]
[1767536974650,0.05483899,91176.0,91175.0,5.531e-05]
[1767536974829,0.05375156,91176.0,91175.0,0.04985445]
[1767536975371,0.01096731,91180.0,91177.0,0.04979914]
[1767536975577,0.06580442,91180.0,91177.0,0.04979914]
[1767536976540,0.05483723,91179.0,91177.0,0.04979914]
[1767536977236,0.06580442,91180.0,91177.0,0.04979914]
[1767536978268,0.0548373,91179.0,91177.0,0.04979914]
[1767536978682,0.06580442,91180.0,91177.0,0.04979914]
[1767536979971,0.01096743,91179.0,91175.0,0.06586257]
[1767536981882,0.0658048,91179.0,91175.0,0.01102322]
[1767536982726,0.06580552,91178.0,91175.0,5.531e-05]
[1767536982926,0.01087913,91178.0,91175.0,5.531e-05]
[1767536983243,0.06571707,91178.0,91175.0,5.531e-05]
[1767536983447,0.0658048,91179.0,91175.0,5.531e-05]
[1767536985072,0.06580536,91178.0,91175.0,5.531e-05]
[1767536986815,0.0658048,91179.0,91175.0,5.531e-05]
[1767536987194,0.0658048,91179.0,91175.0,0.06586278]
[1767536987846,0.06562097,91179.0,91175.0,0.06586278]
[1767536988757,0.06562097,91179.0,91175.0,0.01102322]
[1767536989490,0.0107836,91179.0,91175.0,0.01102322]
[1767536989678,0.01096731,91180.0,91176.0,0.01096779]
[1767536990088,0.06580394,91180.0,91175.0,0.06586238]
[1767536990266,0.01096719,91181.0,91176.0,0.06580633]
[1767536990467,0.01096719,91181.0,91177.0,0.05483837]
[1767536990851,0.06580326,91181.0,91177.0,0.05483837]
[1767536991302,0.06580326,91181.0,91177.0,0.06580604]
[1767536991496,0.06580326,91181.0,91177.0,0.01096767]
[1767536991795,0.06580392,91180.0,91176.0,0.06580633]
[1767536994020,0.06580326,91181.0,91177.0,0.06580591]
[1767536994618,0.06580326,91181.0,91176.0,0.06580633]
[1767536994813,0.01096731,91180.0,91176.0,0.06580633]
[1767536995014,0.06580397,91180.0,91176.0,0.06580633]
[1767536995645,0.01096731,91180.0,91176.0,0.06580633]
[1767536996327,0.06580326,91181.0,91176.0,0.06580633]
[1767536996789,0.06580255,91182.0,91177.0,0.06580558]
[1767536997540,0.06580323,91181.0,91177.0,0.01096767]
[1767537000257,0.06580323,91181.0,91173.0,0.20405208]
[1767537000395,0.06580323,91181.0,91176.0,0.05483856]
[1767537001398,0.06580323,91181.0,91176.0,0.06580635]
[1767537001555,0.06580394,91180.0,91176.0,0.06580635]
[1767537001754,0.06580394,91180.0,91175.0,0.06580638]
[1767537001990,0.06580474,91179.0,91174.0,0.06580816]
[1767537003362,0.06580405,91180.0,91175.0,0.11307954]
[1767537003510,0.06580255,91182.0,91177.0,0.11307781]
[1767537003907,0.06580255,91182.0,91178.0,0.0658053]
[1767537004357,0.01096719,91181.0,91177.0,0.04727204]
[1767537004930,0.01096719,91181.0,91177.0,0.10211039]
[1767537005277,0.06580322,91181.0,91177.0,0.05823971]
[1767537006288,0.06580392,91180.0,91177.0,0.04727204]
[1767537008791,0.05483727,91179.0,91177.0,0.04627304]
[1767537009171,0.06580392,91180.0,91177.0,0.04627304]
[1767537010076,0.06580392,91180.0,91175.0,0.11307909]
[1767537012279,0.06580392,91180.0,91176.0,0.01096779]
[1767537012478,0.01096731,91180.0,91176.0,0.06580664]
[1767537012688,0.065804,91180.0,91176.0,0.01096779]
[1767537012890,0.065804,91180.0,91175.0,0.11307909]
[1767537014347,0.06580401,91180.0,91175.0,0.11307909]
[1767537015876,0.06580466,91179.0,91175.0,0.11307909]
[1767537016156,0.01096743,91179.0,91175.0,0.11307909]
[1767537016396,0.01096743,91179.0,91175.0,0.21307909]
[1767537018838,0.06580476,91179.0,91175.0,0.21307909]
[1767537019258,0.06580476,91179.0,91175.0,0.14727204]
[1767537019475,0.06580537,91178.0,91175.0,0.14317297]
[1767537022320,0.06580572,91179.0,91175.0,0.20898036]
[1767537023780,0.06580572,91179.0,91175.0,0.14317297]
[1767537024452,0.06580547,91178.0,91175.0,0.14317297]
[1767537027376,0.01096755,91178.0,91175.0,0.14317297]
[1767537028585,0.06580572,91179.0,91175.0,0.20898038]
[1767537028825,0.01096743,91179.0,91176.0,0.04727204]
[1767537029329,0.06580479,91179.0,91176.0,0.04727204]
[1767537029868,0.05483823,91178.0,91176.0,0.04727204]
[1767537030070,0.06580479,91179.0,91176.0,0.04727204]
[1767537030518,0.05483793,91178.0,91176.0,0.04727204]
[1767537030716,0.05483839,91177.0,91176.0,0.04727204]
[1767537030894,0.05474789,91177.0,91176.0,0.04727204]
[1767537031308,0.05474789,91177.0,91176.0,0.043173]
[1767537031834,0.05474789,91177.0,91175.0,0.1]
[1767537032178,0.0546574,91177.0,91175.0,0.1]
[1767537032373,0.06580548,91178.0,91175.0,0.1]
[1767537032575,0.05483857,91177.0,91175.0,0.1]
[1767537034243,0.06580549,91178.0,91175.0,0.1]
[1767537035943,0.06480649,91178.0,91175.0,0.1]
[1767537036144,0.00996855,91178.0,91175.0,0.1]
[1767537036326,0.06580511,91179.0,91175.0,0.1]
[1767537037050,0.06580511,91179.0,91175.0,0.14710722]
[1767537037430,0.06580557,91178.0,91175.0,0.14710722]
[1767537038599,0.05483886,91177.0,91175.0,0.14710722]
[1767537038897,0.05483886,91177.0,91175.0,0.099001]
[1767537039078,0.05483899,91176.0,91175.0,0.099001]
[1767537039569,0.05483886,91177.0,91175.0,0.099001]
[1767537039914,0.05483899,91176.0,91175.0,0.099001]
[1767537041491,0.05483886,91177.0,91175.0,0.099001]
[1767537041705,0.0658054,91178.0,91175.0,0.099001]
[1767537042003,0.0834246,91178.0,91175.0,0.099001]
[1767537042564,0.05483844,91177.0,91175.0,0.099001]
[1767537042767,0.0648064,91178.0,91175.0,0.099001]
[1767537043171,0.06580468,91179.0,91175.0,0.099001]
[1767537043370,0.06579821,91188.0,91181.0,0.01096719]
[1767537043618,0.05483338,91186.0,91181.0,0.06580299]
[1767537043761,0.05483338,91186.0,91180.0,0.05483619]
[1767537043762,0.06579501,91193.0,91188.0,0.01096635]
[1767537044114,0.01096551,91195.0,91188.0,0.01096635]
[1767537044115,5.534e-05,91192.0,91189.0,0.0657974]
[1767537044723,5.534e-05,91192.0,91189.0,0.05921842]
[1767537044930,5.534e-05,91192.0,91189.0,0.10632564]
[1767537045482,5.534e-05,91192.0,91189.0,0.05921842]
[1767537045886,5.534e-05,91192.0,91190.0,0.05483043]
[1767537046454,5.534e-05,91192.0,91190.0,0.05483042]
[1767537046914,5.534e-05,91192.0,91189.0,0.06579728]
[1767537047118,5.534e-05,91192.0,91189.0,0.01096623]
[1767537047317,0.01196523,91189.0,91186.0,0.04710722]
[1767537047518,0.000999,91189.0,91186.0,0.04710722]
[1767537047722,0.01196523,91189.0,91186.0,0.04710722]
[1767537047925,0.06579789,91189.0,91184.0,0.05483392]
[1767537048135,0.06579789,91189.0,91184.0,0.0658009]
[1767537048494,0.06579789,91189.0,91185.0,0.05807393]
[1767537049545,0.01096635,91188.0,91185.0,0.04710722]
[1767537049680,0.06579813,91188.0,91185.0,0.04710722]
[1767537049882,0.01096635,91188.0,91185.0,0.04710722]
[1767537050262,0.06579826,91188.0,91184.0,0.0658009]
[1767537050462,0.000999,91185.0,91184.0,0.0658009]
[1767537050658,0.01096635,91188.0,91183.0,0.01096695]
[1767537050904,0.06579866,91188.0,91183.0,0.06580124]
[1767537051117,0.06579866,91188.0,91184.0,0.01096683]
[1767537051267,0.06579866,91188.0,91184.0,0.06580099]
[1767537052742,0.01096635,91188.0,91184.0,0.06580099]
[1767537052948,0.06579789,91189.0,91184.0,0.06580099]
[1767537053804,0.06579818,91188.0,91184.0,0.06580099]
[1767537054611,0.06579789,91189.0,91184.0,0.06580099]
[1767537055026,0.06579789,91189.0,91185.0,0.06580023]
[1767537055236,0.01096623,91189.0,91185.0,0.06580023]
[1767537055907,0.01096611,91190.0,91187.0,0.04710722]
[1767537056078,0.01102121,91192.0,91188.0,0.04710722]
[1767537056284,0.05483057,91190.0,91188.0,0.04710722]
[1767537056435,0.06579668,91190.0,91186.0,0.11290669]
[1767537056640,0.06579668,91190.0,91186.0,0.05807381]
[1767537058937,0.0657975,91189.0,91186.0,0.04710722]
[1767537059167,0.06579668,91190.0,91186.0,0.04710722]
[1767537059343,0.06579668,91190.0,91186.0,0.05807381]
[1767537059606,0.06579668,91190.0,91186.0,0.11290665]
[1767537061370,0.06579668,91190.0,91186.0,0.05807381]
[1767537061761,0.06579668,91190.0,91186.0,0.11290673]
[1767537061964,0.01096611,91190.0,91186.0,0.11290673]
[1767537062137,0.06579701,91190.0,91186.0,0.04710722]
[1767537062641,0.06585073,91192.0,91187.0,0.06579836]
[1767537063304,0.06579607,91191.0,91186.0,0.11290652]
[1767537063489,0.05483077,91190.0,91186.0,0.11290652]
[1767537064421,0.06579688,91190.0,91186.0,0.11290652]
[1767537064839,0.06579607,91191.0,91187.0,0.01096647]
[1767537065130,0.06579607,91191.0,91186.0,0.11290652]
[1767537065312,0.06579672,91190.0,91186.0,0.11290652]
[1767537065693,0.06579607,91191.0,91187.0,0.11106184]
[1767537066054,0.06579607,91191.0,91187.0,0.01096647]
[1767537066253,0.06579607,91191.0,91186.0,0.0657993]
[1767537066683,0.01096611,91190.0,91186.0,0.0657993]
[1767537066886,0.01096611,91190.0,91186.0,0.11106236]
[1767537067287,0.06579607,91191.0,91187.0,0.06579876]
[1767537067510,0.01096599,91191.0,91187.0,0.06579876]
[1767537067721,0.06579616,91191.0,91187.0,0.01096647]
[1767537068434,0.06579674,91190.0,91186.0,0.05622965]
[1767537068632,0.000999,91187.0,91186.0,0.04526306]
[1767537068838,0.01096623,91189.0,91186.0,0.04526306]
[1767537069034,0.06579674,91190.0,91186.0,0.04526306]
[1767537069238,0.06579674,91190.0,91186.0,0.1110625]
[1767537069437,0.06579772,91189.0,91186.0,0.04526306]
[1767537069652,0.01096659,91186.0,91183.0,0.04526306]
[1767537069999,0.06579935,91187.0,91183.0,0.05623001]
[1767537070199,0.01096647,91187.0,91183.0,0.04526306]
[1767537070400,0.06579931,91187.0,91183.0,0.04526306]
[1767537070826,0.01096647,91187.0,91183.0,0.11106464]
[1767537071026,0.06579837,91188.0,91183.0,0.11106464]
[1767537072152,0.06579837,91188.0,91184.0,0.04526306]
[1767537072355,0.06579837,91188.0,91184.0,0.05622989]
[1767537073104,0.01096635,91188.0,91185.0,0.02192]
[1767537073314,0.06579705,91191.0,91188.0,0.000999]
[1767537073527,0.06579705,91191.0,91186.0,0.06579949]
[1767537073711,0.01096611,91190.0,91186.0,0.06579949]
[1767537073838,0.0657968,91190.0,91186.0,0.06579949]
[1767537074298,0.05482997,91191.0,91190.0,0.000999]
[1767537074535,0.05488529,91192.0,91187.0,0.05622953]
[1767537074738,0.06585116,91192.0,91187.0,0.05622953]
[1767537075086,0.01096599,91191.0,91187.0,0.05622953]
[1767537075290,0.01096599,91191.0,91187.0,0.11106176]
[1767537075847,0.0657961,91191.0,91187.0,0.05622953]
[1767537076053,0.01096611,91190.0,91186.0,0.06579904]
[1767537076595,0.06579668,91190.0,91186.0,0.06579904]
[1767537078415,0.01096611,91190.0,91186.0,0.06579904]
[1767537078623,0.01096611,91190.0,91186.0,0.01096659]
[1767537078822,0.06579685,91190.0,91185.0,0.13298334]
[1767537079223,0.06579748,91189.0,91185.0,0.06718306]
[1767537079639,0.01096623,91189.0,91185.0,0.13298312]
[1767537080447,0.06579679,91190.0,91186.0,0.06579949]
[1767537080685,0.06579679,91190.0,91186.0,0.01096659]
[1767537081028,0.06579679,91190.0,91186.0,0.0657993]
[1767537081029,0.01096611,91190.0,91186.0,0.0657993]
[1767537081384,0.06579674,91190.0,91186.0,0.0657993]
[1767537081589,0.01096611,91190.0,91186.0,0.06579948]
[1767537082362,0.06579655,91191.0,91186.0,0.06579948]
[1767537082699,0.01096611,91190.0,91186.0,0.06579948]
[1767537084226,0.06579709,91190.0,91186.0,0.06579941]
[1767537084463,0.06579655,91191.0,91186.0,0.06579941]
[1767537086567,0.06579655,91191.0,91187.0,0.06579883]
[1767537086690,5.534e-05,91192.0,91191.0,0.000999]
[1767537087086,5.534e-05,91192.0,91190.0,0.05483038]
[1767537087287,5.534e-05,91192.0,91191.0,0.05482997]
[1767537087511,5.534e-05,91192.0,91190.0,0.05483038]
[1767537088136,5.534e-05,91192.0,91189.0,0.06579722]
[1767537088746,0.01096575,91193.0,91189.0,0.06579722]
[1767537089054,0.0657938,91194.0,91190.0,0.06579662]
[1767537089670,0.0657938,91194.0,91190.0,0.01096611]
[1767537090532,0.00686753,91194.0,91190.0,0.06579618]
[1767537091522,0.00686753,91194.0,91190.0,0.0657509]
[1767537093542,0.06169587,91194.0,91190.0,0.0657509]
[1767537094249,0.06579458,91193.0,91189.0,0.06579722]
[1767537094396,0.06169587,91194.0,91189.0,0.06579722]
[1767537094937,0.06579388,91194.0,91189.0,0.06579722]
[1767537095973,0.06579457,91193.0,91189.0,0.06579722]
[1767537096157,0.01096575,91193.0,91187.0,0.01096647]
[1767537096344,0.06579643,91191.0,91186.0,0.06579941]
[1767537097098,0.06570585,91191.0,91186.0,0.06579941]
[1767537097374,0.06570585,91191.0,91187.0,0.06579873]
[1767537097710,0.06579686,91190.0,91186.0,0.06579941]
[1767537097908,0.01096611,91190.0,91186.0,0.06579941]
[1767537098532,0.06570585,91191.0,91187.0,0.06579868]
[1767537100552,0.01087541,91191.0,91187.0,0.06579868]
[1767537100782,0.06579638,91192.0,91188.0,0.06579811]
[1767537103983,0.06579638,91192.0,91187.0,0.06579868]
[1767537105622,0.06579602,91191.0,91187.0,0.06579868]
[1767537106116,0.06579703,91190.0,91186.0,0.01096659]
[1767537106278,0.06579703,91190.0,91186.0,0.06579952]
[1767537107317,0.06579751,91189.0,91185.0,0.02192]
[1767537107521,0.06579824,91188.0,91185.0,0.02192]
[1767537107891,0.01096635,91188.0,91185.0,0.02192]
[1767537108095,0.06579751,91189.0,91185.0,0.08772023]
[1767537109652,0.01096611,91190.0,91186.0,0.0657995]
[1767537110817,0.06579685,91190.0,91186.0,0.0657995]
[1767537111306,0.06579742,91189.0,91185.0,0.08772023]
[1767537111487,0.05483247,91187.0,91185.0,0.02192]
[1767537111693,0.05483247,91187.0,91174.0,0.21935947]
[1767537111694,0.01096707,91182.0,91178.0,0.06580517]
[1767537111918,0.01096707,91182.0,91178.0,0.06586051]
[1767537112739,0.01096683,91184.0,91180.0,0.05483615]
[1767537113280,0.02958575,91183.0,91182.0,0.00390782]
[1767537113658,0.08442053,91183.0,91182.0,0.00390782]
[1767537114783,0.08432995,91183.0,91182.0,0.00390782]
[1767537115767,0.02949517,91179.0,91178.0,5.534e-05]
[1767537115967,0.08415117,91179.0,91178.0,5.534e-05]
[1767537117725,0.0548399,91175.0,91169.0,0.07109249]
[1767537117874,0.06580686,91176.0,91171.0,0.0109684]
[1767537118076,0.09512019,91177.0,91172.0,0.01096827]
[1767537118894,0.04028166,91177.0,91173.0,0.0658087]
[1767537119094,0.02931399,91177.0,91173.0,0.0658087]
[1767537119291,0.02931399,91177.0,91174.0,0.01096803]
[1767537119517,0.06580652,91178.0,91174.0,0.01096803]
[1767537119923,0.06580652,91178.0,91174.0,0.0658082]
[1767537120394,0.01096755,91178.0,91174.0,0.0658082]
[1767537120603,0.06580173,91183.0,91179.0,0.01096743]
[1767537121001,0.01096707,91182.0,91178.0,0.0658053]
[1767537121743,0.05483381,91185.0,91179.0,0.05483715]
[1767537122035,0.05483381,91185.0,91137.0,0.0004]
[1767537122036,0.01096563,91194.0,91189.0,0.06579737]
[1767537122239,0.0657033,91194.0,91189.0,0.06615778]
[1767537122441,0.0657929,91196.0,91190.0,0.06579661]
[1767537122643,0.01087491,91195.0,91191.0,0.01096599]
[1767537123416,0.01096563,91194.0,91190.0,0.11246166]
[1767537123627,0.06570304,91195.0,91190.0,0.11246166]
[1767537124287,0.06579395,91194.0,91190.0,0.05763116]
[1767537125496,0.09410894,91194.0,91189.0,0.06615773]
[1767537125693,0.06579395,91194.0,91190.0,0.04666505]
[1767537126564,0.06579452,91193.0,91189.0,0.01132664]
[1767537128807,0.06579383,91194.0,91189.0,0.01132664]
[1767537128987,0.06579383,91194.0,91189.0,0.06615764]
[1767537129305,0.06579468,91193.0,91189.0,0.01132664]
[1767537129901,0.01096575,91193.0,91189.0,0.06615767]
[1767537131147,0.06570269,91195.0,91190.0,0.05483057]
[1767537131352,0.06579286,91196.0,91191.0,0.06579555]
[1767537131570,0.01096539,91196.0,91192.0,0.05482926]
[1767537132303,0.06579245,91196.0,91192.0,0.05482926]
[1767537132715,0.000999,91192.0,91189.0,0.00036041]
[1767537132913,0.01096563,91194.0,91189.0,0.0661576]
[1767537133130,0.06579389,91194.0,91190.0,0.01096611]
[1767537133422,0.06579458,91193.0,91189.0,0.0661576]
[1767537133659,0.00063859,91189.0,91188.0,0.11246309]
[1767537133855,0.00090863,91189.0,91188.0,0.11246309]
[1767537134011,0.00036066,91189.0,91188.0,0.11246309]
[1767537134732,0.00027003,91189.0,91188.0,0.11246309]
[1767537134946,0.0001794,91189.0,91188.0,0.11246309]
[1767537135283,4e-07,91189.0,91188.0,0.11246309]
[1767537136114,0.06579276,91196.0,91191.0,0.06579587]
[1767537136283,0.06585998,91196.0,91191.0,0.06579587]
[1767537137314,0.06585998,91196.0,91192.0,0.01096587]
[1767537139462,0.06585998,91196.0,91191.0,0.11246092]
[1767537139656,0.06579325,91195.0,91191.0,0.05763104]
[1767537139994,0.06579325,91195.0,91191.0,0.11246081]
[1767537140731,0.06579309,91195.0,91191.0,0.05763104]
[1767537141035,0.01096551,91195.0,91191.0,0.11246054]
[1767537141212,0.06579323,91195.0,91191.0,0.11246054]
[1767537141421,0.01096551,91195.0,91191.0,0.11246054]
[1767537142764,0.06579323,91195.0,91191.0,0.05763104]
[1767537143093,0.01096551,91195.0,91191.0,0.11246056]
[1767537143313,0.06585998,91196.0,91191.0,0.11246056]
[1767537144108,0.01096551,91195.0,91191.0,0.11246056]
[1767537145048,0.06585998,91196.0,91191.0,0.11246056]
[1767537145252,0.06585998,91196.0,91192.0,0.065795]
[1767537145553,0.06585998,91196.0,91192.0,0.06570436]
[1767537146012,6.722e-05,91196.0,91192.0,0.06570436]
[1767537148057,6.722e-05,91196.0,91192.0,0.11236941]
[1767537148461,6.722e-05,91196.0,91193.0,0.04666505]
[1767537148758,6.722e-05,91196.0,91193.0,0.11245929]
[1767537149452,2.2e-07,91196.0,91193.0,0.11245929]
[1767537150156,0.06579303,91196.0,91191.0,0.11565639]
[1767537150361,0.000794,91193.0,91192.0,0.04986091]
[1767537150765,0.01096551,91195.0,91192.0,0.04986091]
[1767537150961,0.06579353,91195.0,91192.0,0.04986091]
[1767537151140,0.05482876,91193.0,91192.0,0.04986091]
[1767537151343,0.0657964,91191.0,91187.0,0.04986091]
[1767537151547,0.0657968,91190.0,91187.0,0.04986091]
[1767537151875,0.05483124,91189.0,91187.0,0.04986091]
[1767537152866,0.0657967,91190.0,91187.0,0.04986091]
[1767537154080,0.05483132,91189.0,91187.0,0.04986091]
[1767537154662,0.05483177,91188.0,91187.0,0.04906691]
[1767537155526,0.00568869,91181.0,91172.0,0.01096827]
[1767537155727,0.00568869,91181.0,91171.0,0.21936749]
[1767537155728,0.01096731,91180.0,91174.0,0.02192]
[1767537156078,0.010969,91166.0,91162.0,0.05997754]
[1767537156380,0.010969,91166.0,91163.0,0.02192]
[1767537156521,0.06581379,91167.0,91163.0,0.07092806]
[1767537156726,0.06581412,91166.0,91163.0,0.07092806]
[1767537156969,0.01096888,91167.0,91163.0,0.07092806]
[1767537157167,0.01096876,91168.0,91163.0,0.08773564]
[1767537157371,0.01096876,91168.0,91163.0,0.0880963]
[1767537157967,0.06581243,91169.0,91163.0,0.0880963]
[1767537157968,0.06581243,91169.0,91164.0,0.06581523]
[1767537158336,0.06581265,91168.0,91163.0,0.0880963]
[1767537158760,0.01096876,91168.0,91163.0,0.0880963]
[1767537158996,0.01096876,91168.0,91164.0,0.01096924]
[1767537160279,0.000999,91164.0,91163.0,0.02228066]
[1767537160479,0.000999,91164.0,91163.0,0.00036066]
[1767537160678,0.06581403,91166.0,91163.0,0.00036066]
[1767537160908,0.010969,91166.0,91163.0,0.00036066]
[1767537161055,0.06581448,91166.0,91163.0,0.00036066]
[1767537161279,0.010969,91166.0,91163.0,0.00036066]
[1767537161467,0.05484619,91165.0,91163.0,0.00036066]
[1767537161917,0.05477742,91165.0,91163.0,0.00036066]
[1767537162415,0.0548456,91165.0,91163.0,6.6e-07]
[1767537162598,0.10204299,91164.0,91163.0,6.6e-07]
[1767537162799,0.21940414,91156.0,91153.0,0.0001516]
[1767537163001,0.05485222,91154.0,91153.0,6.701e-05]
[1767537163209,0.05440122,91154.0,91153.0,6.701e-05]
[1767537163531,0.05440122,91154.0,91153.0,1e-08]
[1767537167120,0.05354313,91154.0,91153.0,1e-08]
[1767537169436,0.01097176,91143.0,91140.0,0.07096806]
[1767537169643,0.0109714,91146.0,91143.0,6.7e-05]
[1767537169874,0.01097128,91147.0,91143.0,0.01103876]
[1767537170036,0.01097128,91147.0,91143.0,0.01097176]
[1767537170441,0.01097128,91147.0,91143.0,0.06583052]
[1767537170645,0.08778739,91148.0,91147.0,6.7e-05]
[1767537171047,0.08778739,91148.0,91144.0,0.01097164]
[1767537171362,0.03293116,91148.0,91143.0,0.06583052]
[1767537171695,0.01097128,91147.0,91142.0,0.06583129]
[1767537171895,0.02196,91148.0,91145.0,0.06582899]
[1767537172402,0.02196,91148.0,91145.0,0.01097152]
[1767537173044,0.02196,91148.0,91145.0,0.06582899]
[1767537173266,0.02196,91148.0,91146.0,0.05485665]
[1767537173679,0.02196,91148.0,91145.0,0.06582899]
[1767537176680,0.02196,91148.0,91144.0,0.0658288]
[1767537176911,0.0877872,91148.0,91144.0,0.01097164]
[1767537177113,0.0109714,91146.0,91142.0,0.01097189]
[1767537177244,0.0109714,91146.0,91134.0,0.0004]
[1767537177245,0.001,91144.0,91139.0,0.01097225]
[1767537177447,0.01197164,91144.0,91139.0,0.06583297]
[1767537177667,0.05486005,91141.0,91137.0,0.0004]
[1767537177844,0.05486003,91142.0,91138.0,0.01097237]
[1767537178040,0.05486003,91142.0,91137.0,0.06623485]
[1767537178244,0.05486003,91142.0,91138.0,0.01097237]
[1767537178829,0.05486005,91141.0,91137.0,0.0004]
[1767537179032,0.05486003,91142.0,91138.0,0.01097237]
[1767537179232,0.01097176,91143.0,91138.0,0.06583399]
[1767537179580,0.04719678,91142.0,91138.0,0.06583399]
[1767537179786,0.06583064,91143.0,91138.0,0.06583399]
[1767537179992,0.05485986,91142.0,91137.0,0.05526236]
[1767537180214,0.05486005,91141.0,91137.0,0.0004]
[1767537180909,0.04608161,91141.0,91137.0,0.0004]
[1767537181119,0.10094166,91141.0,91137.0,0.0004]
[1767537182219,0.01097285,91134.0,91129.0,0.01097345]
[1767537182566,0.01097249,91137.0,91130.0,0.01097333]
[1767537182567,0.06583639,91135.0,91130.0,0.01097333]
[1767537182777,0.05486417,91136.0,91134.0,0.00023359]
[1767537183002,0.05486366,91135.0,91134.0,0.00023359]
[1767537184422,0.05486417,91136.0,91134.0,0.00023359]
[1767537184827,0.05486366,91135.0,91134.0,0.00023359]
[1767537185411,0.01097369,91127.0,91117.0,0.0221116]
[1767537185582,0.06584232,91127.0,91120.0,0.06584664]
[1767537185782,0.01097369,91127.0,91122.0,0.01097429]
[1767537185983,0.01097369,91127.0,91121.0,0.06584636]
[1767537186206,0.0658411,91129.0,91125.0,0.01097393]
[1767537186356,0.01097357,91128.0,91124.0,0.06584395]
[1767537186551,0.0570553,91127.0,91123.0,0.01097417]
[1767537186779,0.0570553,91127.0,91121.0,0.06584598]
[1767537186780,0.04608161,91125.0,91121.0,0.01097441]
[1767537186974,0.05705554,91125.0,91120.0,0.0658469]
[1767537187193,0.01097417,91123.0,91119.0,0.01097465]
[1767537187391,0.01092885,91123.0,91119.0,0.01097465]
[1767537187719,0.04608161,91124.0,91120.0,0.06584695]
[1767537187923,0.11192427,91127.0,91122.0,0.0658455]
[1767537188326,0.11192427,91127.0,91123.0,0.01097417]
[1767537188683,0.04608161,91126.0,91123.0,0.01097417]
[1767537188886,0.03565243,91126.0,91120.0,0.01097453]
[1767537189104,0.03565243,91126.0,91122.0,0.0548709]
[1767537189312,0.03565243,91126.0,91123.0,0.01097417]
[1767537189508,0.03565243,91126.0,91123.0,0.00997417]
[1767537189870,0.04608161,91125.0,91122.0,0.06584519]
[1767537190748,0.01097369,91127.0,91123.0,0.01097417]
[1767537190927,0.01097357,91128.0,91124.0,0.01097405]
[1767537191341,0.06584156,91128.0,91124.0,0.01097405]
[1767537191553,0.01097345,91129.0,91125.0,0.01097393]
[1767537192072,0.01097333,91130.0,91126.0,0.01097381]
[1767537192245,0.08779937,91131.0,91126.0,0.01097381]
[1767537193242,0.02096,91131.0,91128.0,0.01097357]
[1767537193827,0.02096,91131.0,91128.0,0.06584087]
[1767537194241,0.02096,91131.0,91128.0,0.01097357]
[1767537194445,0.02096,91131.0,91128.0,0.00997357]
[1767537195741,0.02096,91131.0,91129.0,0.05486726]